bitfinex/quotes_SOLUSD_20240825
["timestamp","ask_amount","ask_price","bid_price","bid_amount"]
[1724592626696,45.0,158.74,158.72,6.2823]
[1724592626865,51.2996,158.74,158.72,6.2823]
[1724592627687,45.0,158.74,158.72,6.2823]
[1724592629471,45.0,158.75,158.72,6.2823]
[1724592630766,51.2992,158.75,158.72,6.2823]
[1724592631802,6.2996,158.74,158.69,15.7537]
[1724592632002,45.0,158.73,158.69,15.7537]
[1724592633278,6.3004,158.72,158.67,6.3023]
[1724592633576,45.0,158.71,158.67,6.3023]
[1724592633774,51.3,158.73,158.67,6.3023]
[1724592634475,51.3,158.73,158.66,38.755]
[1724592634476,51.3,158.73,158.68,6.3018]
[1724592635807,6.3004,158.72,158.67,6.3021]
[1724592635996,45.0,158.71,158.67,6.3021]
[1724592637099,45.0,158.72,158.67,6.3021]
[1724592637297,45.0,158.72,158.68,6.3018]
[1724592641715,45.0,158.72,158.69,6.3012]
[1724592641919,6.2988,158.76,158.71,6.3006]
[1724592643116,6.2984,158.77,158.72,6.3003]
[1724592643317,6.298,158.78,158.73,6.2999]
[1724592644393,6.2985,158.77,158.72,16.444]
[1724592644595,45.0,158.76,158.72,16.444]
[1724592646504,6.2993,158.75,158.72,16.444]
[1724592646826,45.0,158.74,158.72,16.444]
[1724592647120,45.0,158.75,158.72,16.444]
[1724592650619,51.2992,158.75,158.72,16.444]
[1724592661006,51.2992,158.75,158.71,6.4893]
[1724592664412,45.0,158.75,158.71,12.7899]
[1724592664818,254.9,158.81,158.73,15.7499]
[1724592665121,6.2976,158.8,158.74,21.6543]
[1724592665724,261.1968,158.81,158.75,6.2988]
[1724592665932,6.2968,158.81,158.75,6.2988]
[1724592667827,45.0,158.8,158.75,6.2988]
[1724592669438,45.0,158.8,158.76,6.5406]
[1724592670040,51.2972,158.8,158.76,6.5406]
[1724592670959,45.0,158.8,158.76,6.5406]
[1724592671161,6.2968,158.81,158.76,12.8391]
[1724592671743,6.55749379,158.86,158.76,6.5406]
[1724592671940,10.70321616,158.89,158.78,15.3548]
[1724592672135,10.70321616,158.89,158.78,31.0998]
[1724592673264,22.28971097,158.9,158.81,15.742]
[1724592673468,6.2946,158.87,158.81,15.742]
[1724592674576,6.2946,158.87,158.82,15.3548]
[1724592674861,27.11261126,158.93,158.82,15.3548]
[1724592674862,6.2941,158.88,158.82,21.6508]
[1724592675060,6.2936,158.89,158.83,6.5406]
[1724592675253,6.2932,158.9,158.85,6.2952]
[1724592677842,6.2932,158.9,158.86,21.8954]
[1724592677843,28.3334,158.89,158.86,21.8954]
[1724592678039,28.3334,158.89,158.86,28.19]
[1724592678667,6.293,158.91,158.86,28.19]
[1724592679255,254.9,158.96,158.87,23.1542999]
[1724592679460,15.7269,158.97,158.88,1.2586506]
[1724592679969,4.82585988,159.01,158.88,15.735]
[1724592680340,11.37797731,159.01,158.88,15.735]
[1724592680540,20.1,159.0,158.88,15.735]
[1724592681354,6.2916,158.95,158.89,6.2933]
[1724592681743,6.2917,158.94,158.88,15.735]
[1724592681938,6.2921,158.93,158.88,22.0289]
[1724592682145,6.2921,158.93,158.88,15.735]
[1724592682343,6.2925,158.92,158.88,15.735]
[1724592682760,15.7262,158.97,158.87,21.8954]
[1724592682761,51.293,158.91,158.87,21.8954]
[1724592685372,45.0,158.91,158.87,21.8954]
[1724592688277,45.0,158.91,158.87,28.1898]
[1724592692553,6.2921,158.93,158.88,6.294]
[1724592695083,6.2924,158.92,158.88,6.294]
[1724592695256,45.0,158.91,158.88,6.294]
[1724592696167,6.2909,158.96,158.89,23.07739142]
[1724592696368,6.2897,158.99,158.94,6.2915]
[1724592697598,6.2897,158.99,158.93,6.292]
[1724592698867,45.0,158.98,158.93,6.292]
[1724592700690,45.0,158.98,158.91,44.5769]
[1724592700885,45.0,158.98,158.91,22.553]
[1724592702489,6.2917,158.94,158.91,22.553]
[1724592702698,45.0,158.93,158.91,22.553]
[1724592707225,6.2911,158.96,158.91,22.553]
[1724592708813,45.0,158.95,158.91,22.553]
[1724592709852,0.1,159.0,158.91,54.017]
[1724592710125,0.1,159.0,158.95,6.1437]
[1724592710345,6.3893,159.0,158.95,12.4347]
[1724592711409,0.1,159.0,158.96,15.8394]
[1724592711717,0.1,159.0,158.96,23.38798933]
[1724592712029,0.1,159.0,158.97,6.2904]
[1724592713540,0.1,159.0,158.96,15.8394]
[1724592714757,0.1,159.0,158.96,22.1302]
[1724592716022,0.1,159.0,158.98,15.7251]
[1724592718762,0.1,159.0,158.96,15.8394]
[1724592719343,0.1,159.0,158.98,6.29]
[1724592720779,0.1,159.0,158.99,1.25776331]
[1724592721481,0.1,159.0,158.97,22.0165]
[1724592721769,0.1,159.0,158.98,6.29]
[1724592723683,0.1,159.0,158.97,22.0165]
[1724592724960,0.1,159.0,158.97,15.7261]
[1724592725265,0.1,159.0,158.96,15.8394]
[1724592726869,0.1,159.0,158.99,6.2897]
[1724592733682,0.1,159.0,158.98,22.0143]
[1724592733889,0.1,159.0,158.96,22.1299]
[1724592735873,0.1,159.0,158.97,6.2904]
[1724592736477,0.1,159.0,158.96,22.1302]
[1724592736777,6.2913,158.95,158.91,22.1005]
[1724592737099,45.0,158.94,158.91,22.1005]
[1724592737392,45.0,158.95,158.91,22.1005]
[1724592737608,45.0,158.95,158.88,6.2936]
[1724592737977,6.292,158.94,158.89,6.2935]
[1724592738176,45.0,158.93,158.89,6.2935]
[1724592738380,45.0,158.93,158.87,37.8357]
[1724592738776,51.2921,158.93,158.87,44.1298]
[1724592738977,51.2921,158.93,158.87,37.8357]
[1724592739186,45.0,158.93,158.89,6.2936]
[1724592739392,45.0,158.94,158.89,6.2936]
[1724592739708,51.2917,158.94,158.89,6.2936]
[1724592740272,45.0,158.94,158.87,37.8357]
[1724592741409,45.0,158.94,158.88,6.294]
[1724592742680,45.0,158.94,158.87,31.6931]
[1724592742870,6.2898,158.99,158.88,29.29060372]
[1724592743081,0.1,159.0,158.94,6.2916]
[1724592743307,0.1,159.0,158.99,6.2897]
[1724592746421,258.86749672,159.14,158.99,52.71448889]
[1724592746422,254.9,159.14,158.99,52.71448889]
[1724592746588,380.7205469,159.15,158.99,52.71448889]
[1724592746589,0.8205469,159.15,159.06,15.7164]
[1724592746797,6.2838,159.14,159.08,6.2861]
[1724592747217,0.8205469,159.15,159.09,6.4572]
[1724592747390,0.8205469,159.15,159.1,1.25687462]
[1724592748119,0.8205469,159.15,159.13,6.284]
[1724592749393,0.8205469,159.15,159.11,7.54121175]
[1724592749618,0.8205469,159.15,159.11,6.2846]
[1724592750120,0.8205469,159.15,159.12,6.2845]
[1724592750489,0.8205469,159.15,159.11,6.2849]
[1724592750686,0.8205469,159.15,159.11,7.54168478]
[1724592751206,0.8205469,159.15,159.11,6.2849]
[1724592751409,0.8205469,159.15,159.13,21.9937]
[1724592751720,6.2797,159.25,159.18,6.282]
[1724592752310,6.2799,159.24,159.18,7.53831248]
[1724592753190,6.2799,159.24,159.18,1.25621248]
[1724592753819,6.54677739,159.29,159.17,38.2037]
[1724592754392,6.54677739,159.29,159.17,44.4859]
[1724592754593,6.2802,159.23,159.18,1.25618769]
[1724592754818,6.2797,159.25,159.18,7.53828769]
[1724592755321,6.2798,159.24,159.18,6.2821]
[1724592755498,6.2798,159.24,159.17,22.1636]
[1724592755822,45.0,159.23,159.17,22.1636]
[1724592756499,45.0,159.23,159.18,1.25621828]
[1724592756705,45.0,159.23,159.18,7.53831828]
[1724592756915,51.2803,159.23,159.17,22.1636]
[1724592757111,45.0,159.23,159.17,23.41982035]
[1724592757323,45.0,159.23,159.17,22.1636]
[1724592757503,45.0,159.23,159.12,47.4628]
[1724592757504,45.0,159.23,159.13,15.7099]
[1724592757714,6.2818,159.19,159.14,1.25651304]
[1724592757908,45.0,159.18,159.14,1.25651304]
[1724592758217,6.2809,159.22,159.16,6.2828]
[1724592758424,15.6971,159.27,159.17,1.25616459]
[1724592758923,15.6971,159.27,159.16,15.707]
[1724592759403,6.2802,159.23,159.17,6.2824]
[1724592759616,15.6971,159.27,159.18,1.2561402]
[1724592759804,15.6971,159.27,159.16,15.707]
[1724592759805,45.0,159.26,159.16,15.707]
[1724592760324,6.54677739,159.29,159.2,6.2813]
[1724592760627,16.5139469,159.31,159.14,6.4572]
[1724592760829,23.05741551,159.31,159.14,6.4572]
[1724592761213,7.36401551,159.31,159.16,6.4572]
[1724592761420,6.2786,159.27,159.21,21.9829]
[1724592761628,6.2798,159.24,159.19,6.2814]
[1724592761933,15.6951,159.29,159.17,15.7056]
[1724592762232,6.2806,159.22,159.18,1.25617294]
[1724592762416,15.6951,159.29,159.18,1.25617294]
[1724592762727,45.0,159.28,159.18,1.25617294]
[1724592762931,6.2806,159.22,159.18,1.25617294]
[1724592763628,6.2815,159.2,159.17,1.25621073]
[1724592763934,6.2814,159.2,159.16,6.4572]
[1724592764105,45.0,159.19,159.16,6.4572]
[1724592764522,51.2819,159.19,159.16,6.4572]
[1724592766731,6.2822,159.18,159.16,6.4572]
[1724592767030,6.2825,159.17,159.16,6.4572]
[1724592767416,6.2832,159.16,159.12,22.5869]
[1724592767616,6.2833,159.15,159.12,22.5869]
[1724592767818,45.0,159.19,159.12,22.5869]
[1724592768015,6.2837,159.14,159.12,22.5869]
[1724592769112,6.2837,159.14,159.12,6.5468]
[1724592770614,45.0,159.19,159.12,6.5468]
[1724592770936,6.283,159.16,159.13,1.25674584]
[1724592772015,15.7025,159.22,159.13,1.25674584]
[1724592772238,15.6985,159.26,159.14,6.2837]
[1724592772437,6.2816,159.2,159.15,7.53949477]
[1724592772625,6.281,159.21,159.15,7.53949477]
[1724592773913,6.2815,159.2,159.15,7.53949477]
[1724592774640,6.2818,159.19,159.15,1.25629477]
[1724592775145,6.2822,159.18,159.15,1.25629477]
[1724592775330,6.2822,159.18,159.14,1.25643956]
[1724592775817,6.2822,159.18,159.12,12.8313]
[1724592776020,15.697,159.27,159.14,21.9922]
[1724592776246,6.2818,159.19,159.15,1.25643734]
[1724592777040,6.2822,159.18,159.15,1.25643734]
[1724592777711,6.2822,159.18,159.14,1.25644064]
[1724592777907,6.2822,159.18,159.15,1.25644171]
[1724592778426,15.6996,159.24,159.15,16.30954171]
[1724592778813,15.6996,159.24,159.16,1.25643949]
[1724592778814,6.2825,159.18,159.16,1.25643949]
[1724592779118,6.2825,159.18,159.15,15.0531]
[1724592779119,6.2825,159.17,159.15,15.0531]
[1724592780421,6.2829,159.16,159.15,15.0531]
[1724592780619,15.7025,159.21,159.12,6.5468]
[1724592780831,45.0,159.2,159.12,6.5468]
[1724592781037,45.0,159.2,159.13,1.2567015]
[1724592781417,6.2826,159.17,159.13,1.2567015]
[1724592781833,6.2833,159.16,159.13,1.2567015]
[1724592782024,45.0,159.2,159.13,1.2567015]
[1724592782221,45.0,159.2,159.12,6.5468]
[1724592782524,45.0,159.2,159.12,7.80346298]
[1724592782920,6.2837,159.14,159.12,6.5468]
[1724592783125,6.2851,159.11,159.08,6.1299]
[1724592783330,6.2845,159.12,159.09,1.25695385]
[1724592783641,6.2845,159.12,159.08,6.1299]
[1724592784242,6.285,159.11,159.08,6.1299]
[1724592784445,15.7075,159.16,159.08,6.1299]
[1724592784446,6.2855,159.1,159.08,6.1299]
[1724592784652,6.2849,159.12,159.08,6.1299]
[1724592784827,6.2846,159.12,159.08,7.38697173]
[1724592785817,92.1128,159.2,159.09,6.2857]
[1724592786111,15.704,159.2,159.1,1.25675817]
[1724592786313,15.704,159.2,158.95,53.4591]
[1724592786314,15.7098,159.14,159.03,28.1376]
[1724592786513,15.7098,159.14,159.05,6.2873]
[1724592786739,15.7098,159.14,159.06,1.25710228]
[1724592787444,6.2849,159.12,159.05,15.7174]
[1724592787616,15.7064,159.18,159.05,15.7174]
[1724592787617,6.2842,159.13,159.08,6.286]
[1724592787819,6.2838,159.14,159.09,6.2855]
[1724592788018,6.2838,159.14,159.1,6.1299]
[1724592791133,15.7064,159.18,159.1,6.1299]
[1724592791134,6.2842,159.13,159.1,6.1299]
[1724592791343,6.2842,159.13,159.11,1.25683827]
[1724592792858,15.7064,159.18,159.1,6.1299]
[1724592793035,6.2845,159.12,159.1,6.1299]
[1724592793345,6.2842,159.13,159.1,6.1299]
[1724592794168,45.0,159.17,159.11,1.25685766]
[1724592794347,45.0,159.17,159.1,6.1299]
[1724592794666,6.2838,159.14,159.11,1.2568712]
[1724592795035,6.2845,159.12,159.11,1.2568712]
[1724592795237,45.0,159.17,159.11,1.2568712]
[1724592795452,6.2838,159.14,159.11,1.2568712]
[1724592795856,45.0,159.17,159.11,1.2568712]
[1724592796836,6.2837,159.15,159.11,1.2568712]
[1724592797031,45.0,159.17,159.11,1.2568712]
[1724592797235,45.0,159.17,159.12,1.25675123]
[1724592797664,6.283,159.16,159.12,1.25675123]
[1724592797865,15.7024,159.22,159.13,16.32138804]
[1724592798165,6.2822,159.18,159.13,22.60548804]
[1724592798535,3.27828448,159.27,159.13,32.03088804]
[1724592798536,15.6986,159.25,159.13,32.03088804]
[1724592798974,15.6986,159.25,159.14,1.25635189]
[1724592799255,15.6986,159.25,159.15,1.25635287]
[1724592799480,6.2814,159.2,159.15,7.53965287]
[1724592799962,15.7015,159.22,159.13,30.7743]
[1724592800145,15.7015,159.22,159.14,1.25636397]
[1724592800349,15.7015,159.22,159.13,30.7743]
[1724592800644,6.2825,159.18,159.14,1.25649083]
[1724592802866,6.2818,159.19,159.15,7.33358974]
[1724592803074,15.6979,159.26,159.17,6.2825]
[1724592803367,15.6979,159.26,159.18,1.2560943]
[1724592804551,6.2802,159.23,159.18,1.2560943]
[1724592805283,6.2802,159.23,159.17,6.2825]
[1724592805449,6.2807,159.22,159.18,1.25614226]
[1724592805769,51.281,159.21,159.17,1.25623655]
[1724592805942,51.281,159.21,159.18,30.0]
[1724592806365,45.0,159.21,159.19,1.25631508]
[1724592806552,15.6979,159.26,159.18,30.0]
[1724592806840,45.0,159.25,159.19,1.25622917]
[1724592807669,6.2806,159.23,159.19,1.25622917]
[1724592807854,6.2806,159.23,159.18,1.25619712]
[1724592808053,45.0,159.22,159.17,1.25619705]
[1724592808263,45.0,159.25,159.17,1.25619705]
[1724592809455,6.281,159.21,159.17,1.25619705]
[1724592810470,6.2814,159.2,159.17,1.25619705]
[1724592810676,6.281,159.21,159.17,1.25619705]
[1724592810865,6.2814,159.2,159.17,1.25619705]
[1724592811869,6.281,159.21,159.17,1.25619705]
[1724592812178,6.2806,159.22,159.17,1.25619705]
[1724592812351,51.281,159.21,159.17,1.25619705]
[1724592812552,6.281,159.21,159.17,1.25619705]
[1724592813455,45.0,159.25,159.15,6.0771]
[1724592813646,6.2819,159.19,159.15,6.0771]
[1724592815470,6.2814,159.2,159.15,6.0771]
[1724592815661,45.0,159.19,159.15,6.0771]
[1724592817850,6.2829,159.16,159.15,6.0771]
[1724592819287,51.2829,159.16,159.15,6.0771]
[1724592821790,51.2829,159.16,159.13,15.0648]
[1724592821791,45.0,159.16,159.13,15.0648]
[1724592822473,6.2834,159.15,159.13,15.0648]
[1724592826205,6.2837,159.14,159.11,6.1852]
[1724592826563,6.2842,159.13,159.11,6.1852]
[1724592826783,6.2838,159.14,159.11,6.1852]
[1724592827377,6.2842,159.13,159.11,6.1852]
[1724592828765,6.2838,159.14,159.11,6.1852]
[1724592832586,6.2843,159.13,159.11,6.1852]
[1724592832788,45.0,159.16,159.11,6.1852]
[1724592832976,6.2845,159.12,159.11,6.1852]
[1724592833377,15.7081,159.16,159.09,15.7583]
[1724592833679,15.7081,159.16,159.07,6.1876]
[1724592833880,45.0,159.15,159.07,6.1876]
[1724592834082,6.2849,159.11,159.07,6.1876]
[1724592834279,15.7081,159.16,159.08,1.25714832]
[1724592834490,45.0,159.15,159.08,1.25714832]
[1724592835607,6.2842,159.13,159.08,7.54314832]
[1724592835891,15.7071,159.17,159.08,1.25714832]
[1724592836071,6.285,159.11,159.07,6.1876]
[1724592836269,15.7071,159.17,159.07,6.1876]
[1724592836465,15.7071,159.17,159.08,1.25705347]
[1724592836694,15.7071,159.17,159.07,6.1876]
[1724592836992,47.1121,159.2,159.07,21.9039]
[1724592837195,6.2836,159.15,159.09,6.2854]
[1724592837497,45.0,159.14,159.09,6.2854]
[1724592837998,45.0,159.14,159.1,6.2852]
[1724592838329,45.0,159.15,159.07,6.1876]
[1724592838482,6.2851,159.11,159.07,6.1876]
[1724592839394,6.2846,159.12,159.07,6.1876]
[1724592839693,6.2846,159.12,159.07,12.4739]
[1724592841998,45.0,159.11,159.07,6.1876]
[1724592843084,51.285,159.11,159.07,6.1876]
[1724592845414,51.285,159.11,159.07,7.44476288]
[1724592846404,45.0,159.11,159.07,7.44476288]
[1724592848384,45.0,159.11,159.08,1.25714349]
[1724592848585,45.0,159.12,159.08,1.25714349]
[1724592850206,45.0,159.12,159.08,7.54314349]
[1724592852926,6.2818,159.19,159.13,1.25666136]
[1724592853232,6.2818,159.19,159.12,1.25658857]
[1724592853531,6.2818,159.19,159.14,6.2837]
[1724592853726,6.2818,159.19,159.15,1.25657992]
[1724592854102,45.0,159.18,159.14,6.2837]
[1724592854936,45.0,159.19,159.14,6.2837]
[1724592855232,51.2818,159.19,159.14,6.2837]
[1724592855928,6.2822,159.18,159.13,6.2841]
[1724592856119,45.0,159.17,159.13,6.2841]
[1724592860329,0.2716527,159.21,159.14,7.54037032]
[1724592860330,6.2818,159.19,159.14,7.54037032]
[1724592860535,6.2814,159.2,159.14,7.54037032]
[1724592861637,6.2818,159.19,159.14,7.54037032]
[1724592862432,6.2818,159.19,159.14,6.2837]
[1724592864455,6.2818,159.19,159.16,21.3941]
[1724592864619,6.2814,159.2,159.16,21.3941]
[1724592864823,6.5526527,159.21,159.17,1.25647092]
[1724592873566,6.5526527,159.21,159.18,7.53839143]
[1724592873567,0.2716527,159.21,159.18,7.53839143]
[1724592873862,0.2716527,159.21,159.19,6.2817]
[1724592874042,0.2716527,159.21,159.2,1.25611775]
[1724592875332,0.2716527,159.21,159.2,7.53751775]
[1724592875532,0.2716527,159.21,159.2,6.2814]
[1724592876434,0.2716527,159.21,159.19,6.2817]
[1724592876655,0.2716527,159.21,159.2,1.25607062]
[1724592883865,0.2716527,159.21,159.2,7.53747062]
[1724592884056,0.2716527,159.21,159.2,6.2814]
[1724592884748,0.2716527,159.21,159.19,15.7038]
[1724592885271,0.2716527,159.21,159.2,1.25608038]
[1724592885472,3.18995502,159.32,159.2,53.384]
[1724592885642,6.2778,159.29,159.23,6.2801]
[1724592885842,6.2778,159.29,159.24,1.25567151]
[1724592886061,6.2786,159.28,159.22,6.2806]
[1724592886265,6.2778,159.3,159.24,6.2796]
[1724592886571,6.2778,159.3,159.25,7.53488449]
[1724592887674,25.51160508,159.35,159.25,7.53488449]
[1724592887675,6.277,159.32,159.25,7.53488449]
[1724592887969,6.2773,159.31,159.25,6.2794]
[1724592888175,6.2773,159.31,159.26,1.25552401]
[1724592888345,6.2773,159.31,159.27,1.25552111]
[1724592889269,6.2773,159.31,159.25,6.2794]
[1724592889648,6.2775,159.3,159.26,1.25550694]
[1724592891680,6.2779,159.29,159.25,1.25553863]
[1724592892445,6.2774,159.3,159.24,6.2798]
[1724592893261,6.2774,159.3,159.25,6.2794]
[1724592893463,6.2772,159.31,159.26,1.25552891]
[1724592893666,6.2772,159.31,159.27,1.25539901]
[1724592893852,6.2772,159.31,159.25,21.9776]
[1724592894052,6.2772,159.31,159.26,1.25543588]
[1724592894252,6.2772,159.31,159.27,1.25546578]
[1724592895378,15.6896,159.35,159.27,1.25546578]
[1724592896171,15.6896,159.35,159.26,15.6974]
[1724592896172,6.2766,159.32,159.26,15.6974]
[1724592896366,6.277,159.31,159.26,21.9762]
[1724592896568,15.6896,159.35,159.26,21.9762]
[1724592896569,6.2775,159.3,159.26,15.6974]
[1724592898655,15.6896,159.35,159.25,21.9776]
[1724592898884,6.2782,159.28,159.25,21.9776]
[1724592899190,45.0,159.34,159.26,1.25573315]
[1724592899356,45.0,159.34,159.25,43.9545]
[1724592900288,45.0,159.34,159.26,1.25551933]
[1724592900581,6.2774,159.3,159.26,1.25551933]
[1724592901362,6.2774,159.3,159.25,37.6752]
[1724592901565,15.6907,159.33,159.25,21.9776]
[1724592901859,6.2782,159.28,159.25,21.9776]
[1724592902664,45.0,159.32,159.22,1.25567275]
[1724592902665,15.6938,159.3,159.22,1.25567275]
[1724592902981,6.2805,159.23,159.21,21.2949]
[1724592903786,6.2806,159.22,159.21,21.2949]
[1724592903960,15.6965,159.28,159.18,15.7054]
[1724592904162,6.2806,159.23,159.19,1.25610253]
[1724592904675,6.2806,159.23,159.18,21.9874]
[1724592905284,6.2806,159.22,159.19,1.25607678]
[1724592905674,45.0,159.27,159.19,1.25607678]
[1724592905675,6.2802,159.23,159.19,1.25607678]
[1724592906391,6.2802,159.23,159.18,15.7054]
[1724592906581,6.2807,159.22,159.17,27.5774]
[1724592906778,17.61416719,159.31,159.2,15.7032]
[1724592907089,17.61416719,159.31,159.21,1.25588381]
[1724592908074,17.61416719,159.31,159.2,15.7032]
[1724592909599,6.2787,159.27,159.22,6.2805]
[1724592910594,6.2787,159.27,159.2,15.7032]
[1724592910982,6.2787,159.27,159.22,6.2088]
[1724592911183,6.2787,159.27,159.22,12.4893]
[1724592911384,6.2787,159.27,159.23,1.25578908]
[1724592912201,6.2783,159.28,159.24,1.25576418]
[1724592915102,6.2783,159.28,159.23,15.0861]
[1724592915481,6.2788,159.27,159.23,15.0861]
[1724592915886,6.2788,159.27,159.24,1.25576117]
[1724592916091,6.2788,159.27,159.23,15.0861]
[1724592917511,6.2788,159.27,159.24,1.25576725]
[1724592918508,6.279,159.26,159.23,15.0861]
[1724592919002,6.279,159.26,159.24,1.25582118]
[1724592919205,6.2786,159.28,159.24,1.25582118]
[1724592919408,6.2787,159.27,159.24,1.25582118]
[1724592922310,6.2787,159.27,159.23,15.0861]
[1724592922311,6.279,159.26,159.22,6.2088]
[1724592922612,6.279,159.26,159.23,1.25576629]
[1724592923112,6.2785,159.28,159.23,1.25576629]
[1724592923284,6.2787,159.27,159.24,1.25572598]
[1724592925216,6.278,159.29,159.25,1.25570648]
[1724592929014,6.278,159.29,159.24,1.25564999]
[1724592930414,6.2783,159.28,159.24,1.25564999]
[1724592932604,6.2789,159.27,159.24,1.25564999]
[1724592933427,6.2789,159.27,159.22,28.1899]
[1724592933643,6.28,159.24,159.22,6.2088]
[1724592933921,6.2802,159.23,159.2,16.6519]
[1724592934291,6.2798,159.24,159.2,16.6519]
[1724592937606,6.2798,159.24,159.21,1.2560625]
[1724592938209,6.2802,159.23,159.2,17.9079625]
[1724592938404,6.2806,159.22,159.2,16.6519]
[1724592939607,6.281,159.21,159.18,6.3919]
[1724592940741,6.2814,159.2,159.18,6.3919]
[1724592941117,6.281,159.21,159.18,6.3919]
[1724592941342,6.2815,159.2,159.18,6.3919]
[1724592941524,15.6957,159.28,159.19,15.7043]
[1724592941723,51.3772,159.36,159.19,16.96064643]
[1724592941724,31.3844,159.32,159.19,16.96064643]
[1724592941929,277.03215793,159.33,159.22,15.7011]
[1724592941930,6.2774,159.3,159.22,15.7011]
[1724592942138,6.2774,159.3,159.23,1.25559377]
[1724592942443,254.9,159.33,159.25,15.6985]
[1724592942814,6.2782,159.29,159.23,6.28]
[1724592943019,6.2783,159.28,159.23,6.28]
[1724592943235,6.2783,159.28,159.24,1.25576412]
[1724592944828,6.2778,159.29,159.24,1.25576412]
[1724592947331,380.90466719,159.35,159.25,1.25568503]
[1724592947546,6.2771,159.31,159.25,1.25568503]
[1724592948048,6.2774,159.3,159.26,15.6972]
[1724592948250,6.2774,159.3,159.27,1.25551154]
[1724592948925,6.2771,159.31,159.27,6.538]
[1724592950449,6.2771,159.31,159.28,1.25549492]
[1724592951636,6.2771,159.31,159.27,6.538]
[1724592952036,6.2771,159.31,159.28,1.25548857]
[1724592952238,6.2775,159.3,159.27,6.538]
[1724592953150,6.2779,159.29,159.27,6.538]
[1724592954229,6.2782,159.28,159.27,6.538]
[1724592955034,15.6898,159.34,159.27,6.538]
[1724592955239,6.2774,159.3,159.27,6.538]
[1724592958348,6.2779,159.29,159.27,6.538]
[1724592960631,45.0,159.33,159.24,16.3613]
[1724592960632,15.6925,159.32,159.24,16.3613]
[1724592960836,6.279,159.26,159.24,17.61713246]
[1724592961040,6.279,159.26,159.24,16.3613]
[1724592964269,6.2794,159.25,159.23,6.538]
[1724592964772,15.6948,159.29,159.2,15.3462]
[1724592964943,45.0,159.28,159.2,15.3462]
[1724592965873,45.0,159.28,159.21,1.25614809]
[1724592966167,27.37187316,159.33,159.21,1.25603919]
[1724592966381,6.2782,159.28,159.22,6.2805]
[1724592966675,6.2786,159.27,159.23,1.25580785]
[1724592967640,15.6915,159.33,159.24,12.6605]
[1724592967871,6.2782,159.29,159.24,6.3808]
[1724592968661,6.2782,159.29,159.25,1.25565929]
[1724592969466,6.2782,159.28,159.25,1.25565929]
[1724592969670,6.2782,159.28,159.24,6.3808]
[1724592969868,15.6915,159.33,159.24,7.63649952]
[1724592970073,45.0,159.32,159.24,7.63649952]
[1724592970372,45.0,159.32,159.24,6.3808]
[1724592970974,6.2778,159.29,159.24,6.3808]
[1724592971479,6.2778,159.29,159.25,1.25565999]
[1724592972257,6.2775,159.3,159.25,7.53505999]
[1724592972583,6.2775,159.3,159.25,6.2794]
[1724592972756,6.2775,159.3,159.26,15.3462]
[1724592972959,45.0,159.32,159.26,15.3462]
[1724592972960,6.2772,159.31,159.27,1.25558068]
[1724592973881,45.0,159.32,159.27,1.25558068]
[1724592973882,6.2774,159.3,159.27,1.25558068]
[1724592974586,22.25071292,159.36,159.27,1.25558068]
[1724592974761,15.6877,159.36,159.27,1.25558068]
[1724592974955,15.6877,159.36,159.26,15.3462]
[1724592975182,15.6877,159.36,159.27,1.25536877]
[1724592975365,15.6877,159.36,159.26,15.3462]
[1724592975563,6.2766,159.33,159.27,6.2786]